Workbook

Sheet Hoja1
C3: ANEXO No. 2- FORMULARIO DE PRECIOS Y CANTIDADES
C5: Objeto: Prestar el servicio de mantenimiento preventivo, correctivo y calibración de equipos instrumentales del laboratorio de Toxicología requerido por la Secretaria de Movilidad del Distrito.
F10: DOXA | H10: GAMALAB | J10: SISCOMET
C11: ITEM | D11: DESCRIPCIÓN | E11: CANTIDAD | F11: VALOR UNITARIO | G11: VALOR TOTAL | H11: VALOR UNITARIO | I11: VALOR TOTAL | J11: VALOR UNITARIO | K11: VALOR TOTAL | L11: PROMEDIO | M11: MEDIANA | N11: DESVIACION ESTÁNDAR | O11: COEFICIENTE DE DISPERSIÓN
C12: 1 | D12: Mantenimiento preventivo Dilutor Hamilton Microlab D530B | E12: 2 | F12: $ 371,250 | G12: =F12*E12 -> $ 742,500 | H12: $ 290,000 | I12: =H12*E12 -> $ 580,000 | J12: $ 312,500 | K12: =J12*E12 -> $ 625,000 | L12: =AVERAGE(G12,I12,K12) -> $ 649,167 | M12: =MEDIAN(G12,I12,K12) -> $ 625,000 | N12: =STDEV(G12,I12,K12) -> $ 83,902 | O12: =N12/L12 -> 13%
C13: 2 | D13: Calibración Dilutor Hamilton Microlab 530B (calibración en 5 puntos en 2 modos de programación) | E13: 2 | F13: $ 475,000 | G13: =F13*E13 -> $ 950,000 | H13: $ 500,000 | I13: =H13*E13 -> $ 1,000,000 | J13: $ 136,900 | K13: =J13*E13 -> $ 273,800 | L13: =AVERAGE(G13,I13,K13) -> $ 741,267 | M13: =MEDIAN(G13,I13,K13) -> $ 950,000 | N13: =STDEV(G13,I13,K13) -> $ 405,609 | O13: =N13/L13 -> 55%
C14: 3 | D14: Mantenimiento preventivo tanque de agua de reserva laboratorio - 250 L, en fibra de vidrio – plástico | E14: 1 | F14: $ 196,100 | G14: $ 196,100 | H14: $ 150,000 | I14: $ 150,000 | J14: $ 150,000 | K14: $ 150,000 | L14: $ 165,367 | M14: $ 150,000 | N14: $ 26,616 | O14: 16%
C15: 4 | D15: Mantenimiento preventivo termohigrómetros | E15: 5 | F15: $ 35,000 | G15: $ 175,000 | H15: $ 70,000 | I15: $ 350,000 | J15: $ 68,750 | K15: $ 343,750 | L15: $ 289,583 | M15: $ 343,750 | N15: $ 99,281 | O15: 34%
C16: 5 | D16: Mantenimiento preventivo termómetros | E16: 4 | F16: $ 35,000 | G16: $ 140,000 | H16: $ 70,000 | I16: $ 280,000 | J16: $ 62,500 | K16: $ 250,000 | L16: $ 223,333 | M16: $ 250,000 | N16: $ 73,711 | O16: 33%
C17: 6 | D17: Calibración Termohigrómetros TER 158 ThermoPro TP359 y TER 159 ThermPro TP50 en tres puntos para temperatura entre 15°C y 30°C y para humedad 35 y 80 %HR | E17: 2 | F17: $ 208,700 | G17: $ 417,400 | H17: $ 190,000 | I17: $ 380,000 | J17: $ 150,000 | K17: $ 300,000 | L17: $ 365,800 | M17: $ 380,000 | N17: $ 59,974 | O17: 16%
C18: 7 | D18: Calibración Termohigrómetros barómetros TER 142 y TER 143 en tres puntos para temperatura entre 15 y 30°C; para humedad 35 y 80 %HR y verificación en presión atmosférica 640 mm de Hg | E18: 2 | F18: $ 295,000 | G18: $ 590,000 | H18: $ 250,000 | I18: $ 500,000 | J18: $ 300,000 | K18: $ 600,000 | L18: $ 563,333 | M18: $ 590,000 | N18: $ 55,076 | O18: 10%
C19: 8 | D19: Calibración Termohigrómetro Extech Instruments RH520A Ter 111 en tres puntos para temperatura entre 15 y 30°C y para humedad entre 35 y 65 %HR | E19: 1 | F19: $ 208,700 | G19: $ 208,700 | H19: $ 190,000 | I19: $ 190,000 | J19: $ 150,000 | K19: $ 150,000 | L19: $ 182,900 | M19: $ 190,000 | N19: $ 29,987 | O19: 16%
C20: 9 | D20: Calibración Termómetro digital TER 65 marca Hanna Referencia 935005N, en tres puntos, rango de trabajo -5 a 100°C | E20: 1 | F20: $ 185,000 | G20: $ 185,000 | H20: $ 150,000 | I20: $ 150,000 | J20: $ 150,000 | K20: $ 150,000 | L20: $ 161,667 | M20: $ 150,000 | N20: $ 20,207 | O20: 12%
C21: 10 | D21: Calibración Termómetro Patrón TER 69 con sonda marca Extech Instruments, rango de trabajo -5 a 100 °C | E21: 1 | F21: $ 185,000 | G21: $ 185,000 | H21: $ 150,000 | I21: $ 150,000 | J21: $ 144,000 | K21: $ 144,000 | L21: $ 159,667 | M21: $ 150,000 | N21: $ 22,143 | O21: 14%
C22: 11 | D22: Calibración Termómetro infrarrojo TER 145 marca JXB-178, modo temperatura corporal, en el intervalo de 35°C a 40°C, puntos 35°C, 37°C y 40°C. | E22: 1 | F22: $ 310,500 | G22: $ 310,500 | H22: $ 190,000 | I22: $ 190,000 | J22: $ 150,000 | K22: $ 150,000 | L22: $ 216,833 | M22: $ 190,000 | N22: $ 83,547 | O22: 39%
C23: 12 | D23: Calibración Termómetro infrarrojo TER 146 marca ZLK-IRT101, modo temperatura corporal, en el intervalo de 35°C a 40°C, puntos 35°C, 37°C y 40°C. | E23: 1 | F23: $ 310,500 | G23: $ 310,500 | H23: $ 190,000 | I23: $ 190,000 | J23: $ 150,000 | K23: $ 150,000 | L23: $ 216,833 | M23: $ 190,000 | N23: $ 83,547 | O23: 39%
C24: 13 | D24: Mantenimiento preventivo Balanza electrónica marca Lexus, rango de medición 0 g a 30 kg, Bal 130 | E24: 1 | F24: $ 133,000 | G24: $ 133,000 | H24: $ 110,000 | I24: $ 110,000 | J24: $ 96,250 | K24: $ 96,250 | L24: $ 113,083 | M24: $ 110,000 | N24: $ 18,568 | O24: 16%
C25: 14 | D25: Calibración Balanza electrónica marca Lexus, rango de medición 0 g a 30 kg, Bal 130 | E25: 1 | F25: $ 208,900 | G25: $ 208,900 | H25: $ 170,000 | I25: $ 170,000 | J25: $ 117,700 | K25: $ 117,700 | L25: $ 165,533 | M25: $ 170,000 | N25: $ 45,764 | O25: 28%
C26: 15 | D26: Mantenimiento preventivo Balanza de precisión marca Ohaus modelo PA 3102, rango de medición 0,20 g - 3100 g, resolución 0,01 g (Bal 40) | E26: 1 | F26: $ 133,000 | G26: $ 133,000 | H26: $ 110,000 | I26: $ 110,000 | J26: $ 96,250 | K26: $ 96,250 | L26: $ 113,083 | M26: $ 110,000 | N26: $ 18,568 | O26: 16%
C27: 16 | D27: Calibración Balanza de precisión marca Ohaus modelo PA 3102, rango de medición 0,20 g - 3100 g, resolución 0,01 g (Bal 40) | E27: 1 | F27: $ 208,900 | G27: $ 208,900 | H27: $ 170,000 | I27: $ 170,000 | J27: $ 117,700 | K27: $ 117,700 | L27: $ 165,533 | M27: $ 170,000 | N27: $ 45,764 | O27: 28%
C28: 17 | D28: Mantenimiento preventivo Balanza analítica marca Ohaus, modelo Adventur Pro AV264C, rango de medición 0,0 g - 260,0 g, resolución 0,0001 g (Bal 39) | E28: 1 | F28: $ 150,000 | G28: $ 150,000 | H28: $ 120,000 | I28: $ 120,000 | J28: $ 105,000 | K28: $ 105,000 | L28: $ 125,000 | M28: $ 120,000 | N28: $ 22,913 | O28: 18%
C29: 18 | D29: Calibración Balanza analítica marca Ohaus, modelo Adventur Pro AV264C, rango de medición 0,0 g - 260,0 g, resolución 0,0001 g (Bal 39) | E29: 1 | F29: $ 260,650 | G29: $ 260,650 | H29: $ 250,000 | I29: $ 250,000 | J29: $ 178,000 | K29: $ 178,000 | L29: $ 229,550 | M29: $ 250,000 | N29: $ 44,960 | O29: 20%
C30: 19 | D30: Mantenimiento preventivo Balanza tallímetro marca Health o meter, modelo Adventur Pro AV264C, rango de medición 0,0 Kg - 160,0 Kg, resolución 0,1 Kg (Bal 102). | E30: 1 | F30: $ 133,000 | G30: $ 133,000 | H30: $ 110,000 | I30: $ 110,000 | J30: $ 100,000 | K30: $ 100,000 | L30: $ 114,333 | M30: $ 110,000 | N30: $ 16,921 | O30: 15%
C31: 20 | D31: Calibración Balanza tallímetro marca Health o meter, modelo Adventur Pro AV264C, rango de medición 0,0 Kg - 160,0 Kg, resolución 0,1 Kg (Bal 102). | E31: 1 | F31: $ 175,200 | G31: $ 175,200 | H31: $ 170,000 | I31: $ 170,000 | J31: $ 132,500 | K31: $ 132,500 | L31: $ 159,233 | M31: $ 170,000 | N31: $ 23,297 | O31: 15%
C32: 21 | D32: Mantenimiento preventivo Pipeta 10 - 100 ul, marca Thermo Scientific (Pip 28) ( Pip 77) | E32: 1 | F32: $ 70,000 | G32: $ 70,000 | H32: $ 90,000 | I32: $ 90,000 | J32: $ 81,250 | K32: $ 81,250 | L32: $ 80,417 | M32: $ 81,250 | N32: $ 10,026 | O32: 12%
C33: 22 | D33: Mantenimiento preventivo Pipeta 100 - 1000 ul, marca Brand (Pip 78) | E33: 1 | F33: $ 70,000 | G33: $ 70,000 | H33: $ 90,000 | I33: $ 90,000 | J33: $ 81,250 | K33: $ 81,250 | L33: $ 80,417 | M33: $ 81,250 | N33: $ 10,026 | O33: 12%
C34: 23 | D34: Mantenimiento preventivo Pipeta 0,5 - 10 ml marca Eppendorf (Pip 79) (Pipi 121 | E34: 1 | F34: $ 70,000 | G34: $ 70,000 | H34: $ 90,000 | I34: $ 90,000 | J34: $ 81,250 | K34: $ 81,250 | L34: $ 80,417 | M34: $ 81,250 | N34: $ 10,026 | O34: 12%
C35: 24 | D35: Mantenimiento preventivo Pipeta 10 - 100 ul, marca Finnpipette, (Pip 120) | E35: 1 | F35: $ 70,000 | G35: $ 70,000 | H35: $ 90,000 | I35: $ 90,000 | J35: $ 81,250 | K35: $ 81,250 | L35: $ 80,417 | M35: $ 81,250 | N35: $ 10,026 | O35: 12%
C36: 25 | D36: Calibración Pipeta 10 - 100 ul, marca Thermo Scientific (Pip 28) (pip 121) | E36: 1 | F36: $ 183,700 | G36: $ 183,700 | H36: $ 200,000 | I36: $ 200,000 | J36: $ 150,000 | K36: $ 150,000 | L36: $ 177,900 | M36: $ 183,700 | N36: $ 25,500 | O36: 14%
C37: 26 | D37: Calibración Pipeta 100 - 1000 ul, marca Brand (Pip 78) | E37: 1 | F37: $ 183,700 | G37: $ 183,700 | H37: $ 200,000 | I37: $ 200,000 | J37: $ 150,000 | K37: $ 150,000 | L37: $ 177,900 | M37: $ 183,700 | N37: $ 25,500 | O37: 14%
C38: 27 | D38: Calibración Pipeta 0,5 - 10 ml marca Eppendorf (Pip 77) | E38: 1 | F38: $ 183,700 | G38: $ 183,700 | H38: $ 200,000 | I38: $ 200,000 | J38: $ 150,000 | K38: $ 150,000 | L38: $ 177,900 | M38: $ 183,700 | N38: $ 25,500 | O38: 14%
C39: 28 | D39: Calibración Pipeta 10 - 100 ul, marca Finnpipette, (Pip 120) | E39: 1 | F39: $ 183,700 | G39: $ 183,700 | H39: $ 200,000 | I39: $ 200,000 | J39: $ 150,000 | K39: $ 150,000 | L39: $ 177,900 | M39: $ 183,700 | N39: $ 25,500 | O39: 14%
C40: 29 | D40: Mantenimiento preventivo compresor de aire de 60 libras - 1 HP eléctrico - voltios 110. Incluye cambio de filtro de aire | E40: 1 | F40: $ 360,000 | G40: $ 360,000 | H40: $ 200,000 | I40: $ 200,000 | J40: $ 225,000 | K40: $ 225,000 | L40: $ 261,667 | M40: $ 225,000 | N40: $ 86,072 | O40: 33%
C41: 30 | D41: Mantenimiento preventivo de Tensiómetro marca Welch Allyn rango de 16 a 300 mm Hg TEN 134 y TEN 140 | E41: 2 | F41: $ 75,000 | G41: $ 150,000 | H41: $ 100,000 | I41: $ 200,000 | J41: $ 125,000 | K41: $ 250,000 | L41: $ 200,000 | M41: $ 200,000 | N41: $ 50,000 | O41: 25%
C42: 31 | D42: Calibración de Tensiómetro marca Welch Allyn rango de 16 a 300 mm Hg TEN 134 y TEN 140 | E42: 2 | F42: $ 125,300 | G42: $ 250,600 | H42: $ 130,000 | I42: $ 260,000 | J42: $ 150,000 | K42: $ 300,000 | L42: $ 270,200 | M42: $ 260,000 | N42: $ 26,232 | O42: 10%
C43: 32 | D43: Mantenimiento preventivo Fonendoscopio marca Welch Allyn Fon 135 y Fon 136 | E43: 2 | F43: $ 45,000 | G43: $ 90,000 | H43: $ 90,000 | I43: $ 180,000 | J43: $ 112,500 | K43: $ 225,000 | L43: $ 165,000 | M43: $ 180,000 | N43: $ 68,739 | O43: 42%
C44: 33 | D44: Calibración de set masa patrón 21 masas clase 3 o F1 con certificado trazable. Categoría: aleación de 8 peso métricas de calibración de precisión. Material: 20 g-1 g pesos en aleación de 8 de acero inoxidable, 500 mg- 50 mg en acero inoxidable 304, por debajo de 50 mg en aluminio. Configuración set: 20 g, 10 g, 5 g, 2 - 2 g, 1 g, 500 mg, 2 - 200 mg, 100 mg, 50 mg, 2 - 20 mg, 10 mg, 5 mg, 2 - 2 mg, 1 mg | E44: 1 | F44: $ 1,850,000 | G44: $ 1,850,000 | H44: $ 2,730,000 | I44: $ 2,730,000 | J44: $ 2,163,000 | K44: $ 2,163,000 | L44: $ 2,247,667 | M44: $ 2,163,000 | N44: $ 446,068 | O44: 20%
C45: 34 | D45: Mantenimiento preventivo Duchas torrenciales lava ojos | E45: 2 | F45: $ 90,000 | G45: $ 180,000 | H45: $ 130,000 | I45: $ 260,000 | J45: $ 150,000 | K45: $ 300,000 | L45: $ 246,667 | M45: $ 260,000 | N45: $ 61,101 | O45: 25%
C46: 35 | D46: Mantenimiento preventivo Malacate | E46: 1 | F46: $ 850,000 | G46: $ 850,000 | H46: $ 600,000 | I46: $ 600,000 | J46: $ 625,000 | K46: $ 625,000 | L46: $ 691,667 | M46: $ 625,000 | N46: $ 137,689 | O46: 20%
C47: 36 | D47: Mantenimiento preventivo Línea de gases especiales (incluye prueba de hermeticidad para gases especiales, ajustes visibles de la red, mantenimiento del sistema de regulación inicial y del sistema de regulación del puesto). Incluye verificación de funcionamiento, limpieza y ajuste del sistema de regulación. | E47: 1 | F47: $ 3,200,000 | G47: $ 3,200,000 | H47: $ 1,800,000 | I47: $ 1,800,000 | J47: $ 4,500,000 | K47: $ 4,500,000 | L47: $ 3,166,667 | M47: $ 3,200,000 | N47: $ 1,350,309 | O47: 43%
C48: 37 | D48: Calibración de manómetros de línea de gases | E48: 13 | F48: $ 167,050 | G48: $ 2,171,650 | H48: $ 250,000 | I48: $ 3,250,000 | J48: $ 160,000 | K48: $ 2,080,000 | L48: $ 2,500,550 | M48: $ 2,171,650 | N48: $ 650,658 | O48: 26%
C49: 38 | D49: Mantenimiento preventivo linterna de bolsillo profesional Welch Allyn | E49: 2 | F49: $ 55,000 | G49: $ 110,000 | H49: $ 70,000 | I49: $ 140,000 | J49: $ 87,500 | K49: $ 175,000 | L49: $ 141,667 | M49: $ 140,000 | N49: $ 32,532 | O49: 23%
C50: 39 | D50: Mantenimiento baño serológico (BAÑ 13). | E50: 1 | F50: $ 85,000 | G50: $ 85,000 | H50: $ 90,000 | I50: $ 90,000 | J50: $ 106,250 | K50: $ 106,250 | L50: $ 93,750 | M50: $ 90,000 | N50: $ 11,110 | O50: 12%
C51: 40 | D51: Calibración baño serológico (BAÑ 13). | E51: 1 | F51: $ 107,950 | G51: $ 107,950 | H51: $ 200,000 | I51: $ 200,000 | J51: $ 114,000 | K51: $ 114,000 | L51: $ 140,650 | M51: $ 114,000 | N51: $ 51,488 | O51: 37%
C52: 41 | D52: Mantenimiento correctivo (Bolsa de Respuestos) Nota: El presupuesto de esta bolsa será asignada por la entidad una vez se adjudique el prceso. | E52: 1 | F52: 0 | G52: 0 | H52: 0 | I52: 0 | K52: 0 | L52: 0 | M52: 0 | N52: 0
C53: SUBTOTAL | G53: =SUM(G12:G51) -> $ 16,233,350 | I53: =SUM(I12:I52) -> $ 16,390,000 | K53: =SUM(K12:K51) -> $ 16,218,200 | L53: $ 16,280,517 | M53: $ 16,233,350 | N53: $ 95,117 | O53: 1%
C54: IVA | G54: =G53*19% -> $ 3,084,337 | I54: =I53*19% -> $ 3,114,100 | K54: =K53*19% -> $ 3,081,458 | L54: $ 3,093,298 | M54: $ 3,084,337 | N54: $ 18,072 | O54: 1%
C55: TOTAL | G55: =G53+G54 -> $ 19,317,687 | I55: =I53+I54 -> $ 19,504,100 | K55: =K53+K54 -> $ 19,299,658 | L55: $ 19,373,815 | M55: $ 19,317,687 | N55: $ 113,190 | O55: 1%
K57: $ 28,470,000
I58: $ 1,423,500.00 | K58: =K57-I55 -> $ 8,965,900
I59: =I55/I58 -> 14
